{"text_format":"1","workbook":"xlsx","n_sheets":3,"sheets":["Raporttinäkymä","Laiteluettelo","Pivot-tiedot"],"not_rendered":{"charts":0,"images":0,"macros":1,"external_links":0,"defined_names":13,"comments":0,"pivot_tables":1},"unopened":[],"bounds":{"document_bytes":16777216,"sheet_cells":100000,"rows_first":2000,"rows_last":500,"rows_between":2000,"halvings":0,"cell_chars":16384,"cell_head_chars":4096},"cells_cut":0,"cells_raw":0,"read":"whole","date_system":"1900"}

{"sheet":"Raporttinäkymä","index":0,"n_rows":20,"n_cols":6,"rows_kept":20,"cut":false,"hidden":false,"merged":[]}
[null,"Raporttinäkymä"]
[]
[]
[null,null,null,null,null,"Kokonaismäärä"]
[null,null,null,null,null,{"$f":"GETPIVOTDATA(\"Määrä  / Jäljellä olevat\",'Pivot-tiedot'!$B$10)","v":3}]
[]
[null,null,null,null,null,"Kuukausikulut yhteensä"]
[null,null,null,null,null,{"$f":"GETPIVOTDATA(\"Summa  / Kuukausikulut yhteensä\",'Pivot-tiedot'!$B$10)","v":1765.5943035068672}]
[]
[null,null,null,null,null,"Toimintakustannukset"]
[null,null,null,null,null,{"$f":"GETPIVOTDATA(\"Summa  / Kuukausittaiset\ntoimintakustannukset \nyhteensä\",'Pivot-tiedot'!$B$10)","v":605}]
[]
[null,null,null,null,null,"Kuukausipoisto"]
[null,null,null,null,null,{"$f":"GETPIVOTDATA(\"Summa  / Kuukausipoisto\n(tasapoisto)\",'Pivot-tiedot'!$B$10)","v":659.72222222222217}]
[]
[null,null,null,null,null,"Maksun määrä"]
[null,null,null,null,null,{"$f":"GETPIVOTDATA(\"Summa  / Kuukausierä\",'Pivot-tiedot'!$B$10)","v":1160.5943035068672}]
[]
[null,null,null,null,null,"Nykyinen arvo"]
[null,null,null,null,null,{"$f":"GETPIVOTDATA(\"Summa  / Nykyinen arvo\",'Pivot-tiedot'!$B$10)","v":36947.031963470319}]

{"sheet":"Laiteluettelo","index":1,"n_rows":9,"n_cols":20,"rows_kept":9,"cut":false,"hidden":false,"merged":[]}
[null,"Laiteluettelo"]
[]
[null,null,null,null,"Korosta, kun jäljellä olevien kuukausierien määrä on vähemmän kuin: ",20]
[]
[null,"Erä- tai\nsarjanumero","Kohteen kuvaus\n(Tyyppi ja malli)","Sijainti","Kunto","Toimittaja","Jäljellä olevat\nkäyttövuodet ","Alkuarvo","Käsiraha","Osto- tai\nvuokrauspäivä","Laina-aika\n(vuosina)","Lainakorko","Kuukausittaiset\ntoimintakustannukset \nyhteensä","Arvioitu arvo sopimuksen lopussa","Jäljellä olevat kuukausierät","Kuukausierä","Kuukausikulut yhteensä","Vuosipoisto\n(tasapoisto)","Kuukausipoisto\n(tasapoisto)","Nykyinen arvo"]
[null,123,"Tyyppimalli 1","Päähaara","Hyvä","Paikallinen",5,30000,5000,"2011-01-15",4,0.1,200,20000,{"$f":"IFERROR(SUMPRODUCT(--(DAY(ROW(OFFSET($A$1,,,DATE(YEAR(Equipment[[#This Row],[Osto- tai\nvuokrauspäivä]])+Equipment[[#This Row],[Laina-aika\n(vuosina)]],MONTH(Equipment[[#This Row],[Osto- tai\nvuokrauspäivä]])-1,DAY(Equipment[[#This Row],[Osto- tai\nvuokrauspäivä]]))-TODAY()))+DATE(YEAR(Equipment[[#This Row],[Osto- tai\nvuokrauspäivä]])+Equipment[[#This Row],[Laina-aika\n(vuosina)]],MONTH(Equipment[[#This Row],[Osto- tai\nvuokrauspäivä]]),DAY(Equipment[[#This Row],[Osto- tai\nvuokrauspäivä]]))-1)=DAY(Equipment[[#This Row],[Osto- tai\nvuokrauspäivä]]))),0)","v":24},{"$f":"IFERROR(-(Equipment[Alkuarvo]>0)*(Equipment[Alkuarvo]<>Equipment[Käsiraha])*PMT(Equipment[Lainakorko]/MonthsInYear,Equipment[Laina-aika\n(vuosina)]*MonthsInYear,Equipment[Alkuarvo]-Equipment[Käsiraha]),0)","v":634.06458586867973},{"$f":"Equipment[[#This Row],[Kuukausierä]]+Equipment[Kuukausittaiset\ntoimintakustannukset \nyhteensä]","v":834.06458586867973},{"$f":"IFERROR((Equipment[Alkuarvo]>0)*SLN(Equipment[Alkuarvo],Equipment[Arvioitu arvo sopimuksen lopussa],Equipment[Laina-aika\n(vuosina)]),0)","v":2500},{"$f":"IFERROR(Equipment[Vuosipoisto\n(tasapoisto)]/MonthsInYear,0)","v":208.33333333333334},{"$f":"IFERROR(Equipment[Alkuarvo]-(Equipment[Vuosipoisto\n(tasapoisto)]*((TODAY()-Equipment[Osto- tai\nvuokrauspäivä])/DaysInYear)),0)","v":25178.082191780821}]
[null,234,"Tyyppimalli 2","Päähaara","Hyvä","Paikallinen",4,12500,1500,"2011-03-10",3,7.7499999999999999E-2,120,3000,{"$f":"IFERROR(SUMPRODUCT(--(DAY(ROW(OFFSET($A$1,,,DATE(YEAR(Equipment[[#This Row],[Osto- tai\nvuokrauspäivä]])+Equipment[[#This Row],[Laina-aika\n(vuosina)]],MONTH(Equipment[[#This Row],[Osto- tai\nvuokrauspäivä]])-1,DAY(Equipment[[#This Row],[Osto- tai\nvuokrauspäivä]]))-TODAY()))+DATE(YEAR(Equipment[[#This Row],[Osto- tai\nvuokrauspäivä]])+Equipment[[#This Row],[Laina-aika\n(vuosina)]],MONTH(Equipment[[#This Row],[Osto- tai\nvuokrauspäivä]]),DAY(Equipment[[#This Row],[Osto- tai\nvuokrauspäivä]]))-1)=DAY(Equipment[[#This Row],[Osto- tai\nvuokrauspäivä]]))),0)","v":14},{"$f":"IFERROR(-(Equipment[Alkuarvo]>0)*(Equipment[Alkuarvo]<>Equipment[Käsiraha])*PMT(Equipment[Lainakorko]/MonthsInYear,Equipment[Laina-aika\n(vuosina)]*MonthsInYear,Equipment[Alkuarvo]-Equipment[Käsiraha]),0)","v":343.43280007691891},{"$f":"Equipment[[#This Row],[Kuukausierä]]+Equipment[Kuukausittaiset\ntoimintakustannukset \nyhteensä]","v":463.43280007691891},{"$f":"IFERROR((Equipment[Alkuarvo]>0)*SLN(Equipment[Alkuarvo],Equipment[Arvioitu arvo sopimuksen lopussa],Equipment[Laina-aika\n(vuosina)]),0)","v":3166.6666666666665},{"$f":"IFERROR(Equipment[Vuosipoisto\n(tasapoisto)]/MonthsInYear,0)","v":263.88888888888886},{"$f":"IFERROR(Equipment[Alkuarvo]-(Equipment[Vuosipoisto\n(tasapoisto)]*((TODAY()-Equipment[Osto- tai\nvuokrauspäivä])/DaysInYear)),0)","v":6860.7305936073062}]
[null,345,"Tyyppimalli 2","Konttori 1","Välttävä","Muu",1,10000,2500,"2010-09-15",4,0.08,285,1000,{"$f":"IFERROR(SUMPRODUCT(--(DAY(ROW(OFFSET($A$1,,,DATE(YEAR(Equipment[[#This Row],[Osto- tai\nvuokrauspäivä]])+Equipment[[#This Row],[Laina-aika\n(vuosina)]],MONTH(Equipment[[#This Row],[Osto- tai\nvuokrauspäivä]])-1,DAY(Equipment[[#This Row],[Osto- tai\nvuokrauspäivä]]))-TODAY()))+DATE(YEAR(Equipment[[#This Row],[Osto- tai\nvuokrauspäivä]])+Equipment[[#This Row],[Laina-aika\n(vuosina)]],MONTH(Equipment[[#This Row],[Osto- tai\nvuokrauspäivä]]),DAY(Equipment[[#This Row],[Osto- tai\nvuokrauspäivä]]))-1)=DAY(Equipment[[#This Row],[Osto- tai\nvuokrauspäivä]]))),0)","v":20},{"$f":"IFERROR(-(Equipment[Alkuarvo]>0)*(Equipment[Alkuarvo]<>Equipment[Käsiraha])*PMT(Equipment[Lainakorko]/MonthsInYear,Equipment[Laina-aika\n(vuosina)]*MonthsInYear,Equipment[Alkuarvo]-Equipment[Käsiraha]),0)","v":183.09691756126861},{"$f":"Equipment[[#This Row],[Kuukausierä]]+Equipment[Kuukausittaiset\ntoimintakustannukset \nyhteensä]","v":468.09691756126858},{"$f":"IFERROR((Equipment[Alkuarvo]>0)*SLN(Equipment[Alkuarvo],Equipment[Arvioitu arvo sopimuksen lopussa],Equipment[Laina-aika\n(vuosina)]),0)","v":2250},{"$f":"IFERROR(Equipment[Vuosipoisto\n(tasapoisto)]/MonthsInYear,0)","v":187.5},{"$f":"IFERROR(Equipment[Alkuarvo]-(Equipment[Vuosipoisto\n(tasapoisto)]*((TODAY()-Equipment[Osto- tai\nvuokrauspäivä])/DaysInYear)),0)","v":4908.2191780821922}]
[null,"Yhteensä",null,null,null,null,{"$f":"SUBTOTAL(101,Equipment[Jäljellä olevat\nkäyttövuodet ])","v":3.3333333333333335},{"$f":"SUBTOTAL(109,Equipment[Alkuarvo])","v":52500},{"$f":"SUBTOTAL(109,Equipment[Käsiraha])","v":9000},null,{"$f":"SUBTOTAL(101,Equipment[Laina-aika\n(vuosina)])","v":3.6666666666666665},{"$f":"SUBTOTAL(101,Equipment[Lainakorko])","v":8.5833333333333331E-2},{"$f":"SUBTOTAL(109,Equipment[Kuukausittaiset\ntoimintakustannukset \nyhteensä])","v":605},{"$f":"SUBTOTAL(109,Equipment[Arvioitu arvo sopimuksen lopussa])","v":24000},{"$f":"SUBTOTAL(101,Equipment[Jäljellä olevat kuukausierät])","v":19.333333333333332},{"$f":"SUBTOTAL(109,Equipment[Kuukausierä])","v":1160.5943035068672},{"$f":"SUBTOTAL(109,Equipment[Kuukausikulut yhteensä])","v":1765.5943035068672},{"$f":"SUBTOTAL(101,Equipment[Vuosipoisto\n(tasapoisto)])","v":2638.8888888888887},{"$f":"SUBTOTAL(101,Equipment[Kuukausipoisto\n(tasapoisto)])","v":219.90740740740739},{"$f":"SUBTOTAL(109,Equipment[Nykyinen arvo])","v":36947.031963470319}]

{"sheet":"Pivot-tiedot","index":2,"n_rows":14,"n_cols":8,"rows_kept":14,"cut":false,"hidden":true,"merged":[]}
[null,"Pivot-tiedot"]
[null,"Tämä taulukko on piilotettava. Taulukon Pivot-taulukon rakenteen muuttaminen voi johtaa virheisiin Raporttinäkymä-ikkunan osittajissa."]
[null,"Kohteen kuvaus\n(Tyyppi ja malli)","(Kaikki)"]
[null,"Sijainti","(Kaikki)"]
[null,"Kunto","(Kaikki)"]
[null,"Toimittaja","(Kaikki)"]
[null,"Laina-aika\n(vuosina)","(Kaikki)"]
[null,"Alkuarvo","(Kaikki)"]
[]
[null,"Riviotsikot","Määrä  / Jäljellä olevat","Summa  / Kuukausittaiset\ntoimintakustannukset \nyhteensä","Summa  / Kuukausierä","Summa  / Kuukausikulut yhteensä","Summa  / Kuukausipoisto\n(tasapoisto)","Summa  / Nykyinen arvo"]
[null,123,1,200,634.06458586867973,834.06458586867973,208.33333333333334,25178.082191780821]
[null,234,1,120,343.43280007691891,463.43280007691891,263.88888888888886,6860.7305936073062]
[null,345,1,285,183.09691756126861,468.09691756126858,187.5,4908.2191780821922]
[null,"Kaikki yhteensä",3,605,1160.5943035068672,1765.5943035068672,659.72222222222217,36947.031963470319]